fUSD/lending_fUSD_20250814
["ID","MTS","AMOUNT","RATE_DAILY","PERIOD"]
[379121371,1755151890422,-151.0,0.00040562,30]
[379121372,1755151890436,-151.0,0.00040562,30]
[379121373,1755151890449,-151.0,0.00040562,30]
[379121374,1755151890463,-151.0,0.00040562,30]
[379121375,1755151890477,-151.0,0.00040562,30]
[379121376,1755151890490,-220.522915,0.00040562,30]
[379121377,1755151890503,-160.192886,0.00040562,30]
[379121378,1755151890518,-151.0,0.00040562,30]
[379121379,1755151890531,-243.6956,0.00040562,30]
[379121380,1755151890545,-359.819535,0.00040562,20]
[379121381,1755151890558,-359.819535,0.00040562,20]
[379121382,1755151890572,-359.819535,0.00040562,20]
[379121383,1755151890585,-359.819535,0.00040562,20]
[379121384,1755151890599,-359.819535,0.00040562,20]
[379121385,1755151890613,-359.819535,0.00040562,20]
[379121386,1755151890626,-359.819535,0.00040562,20]
[379121387,1755151890638,-359.819535,0.00040562,20]
[379121388,1755151890651,-359.819535,0.00040562,20]
[379121389,1755151890664,-359.819535,0.00040562,20]
[379121390,1755151890678,-359.819535,0.00040562,20]
[379121391,1755151890689,-359.819536,0.00040562,20]
[379121392,1755151890699,-165.7,0.000406,42]
[379121393,1755151891046,-291.0,0.00040602,2]
[379121394,1755151891077,-150.0,0.00040607,2]
[379121395,1755151891087,-150.0,0.00040607,2]
[379121396,1755151891097,-300.0,0.00040607,2]
[379121397,1755151891106,-346.7,0.00040607,2]
[379121398,1755151891116,-150.0,0.00040608,120]
[379121399,1755151891125,-244.3,0.00040613,2]
[379121400,1755151891135,-173.35,0.00040613,2]
[379121401,1755151891144,-360.03,0.00040613,2]
[379121402,1755151891154,-360.03,0.00040614,2]
[379121403,1755151891163,-300.0,0.00040619,2]
[379121404,1755151891172,-150.0,0.00040619,2]
[379121405,1755151891182,-182.5,0.0004063,2]
[379121406,1755151891191,-168.0,0.00040631,2]
[379121407,1755151891201,-350.0,0.00040645,120]
[379121408,1755151891210,-150.0,0.00040645,2]
[379121409,1755151891220,-581.8480867,0.00040645,2]
[379121410,1755151891230,-150.0,0.00040645,2]
[379121411,1755151891240,-3537.21129364,0.00040645,2]
[379121412,1755151891250,-1444.0,0.00040658,120]
[379121413,1755151891259,-928.0,0.00040665,2]
[379121414,1755151891270,-1000.0,0.0004067,3]
[379121415,1755151891280,-1000.0,0.0004067,3]
[379121416,1755151891290,-500.0,0.0004067,3]
[379121417,1755151891299,-500.0,0.0004067,3]
[379121418,1755151891309,-981.0,0.0004067,2]
[379121419,1755151891319,-346.7,0.00040679,2]
[379121420,1755151891328,-360.13,0.00040679,2]
[379121421,1755151891337,-360.13,0.00040679,2]
[379121422,1755151891347,-360.13,0.00040679,2]
[379121423,1755151891357,-331.58,0.00040679,2]
[379121424,1755151891366,-1077.1,0.00040679,2]
[379121425,1755151891376,-165.84,0.00040692,2]
[379121426,1755151891386,-151.0,0.00040694,30]
[379121427,1755151891395,-285.19038164,0.00040697,120]
[379121428,1755151891405,-536.520139,0.000407,44]
[379121429,1755151891414,-2763.5,0.000407,2]
[379121430,1755151891424,-1522.4288,0.000407,2]
[379121431,1755151891434,-1167.1059,0.000407,2]
[379121432,1755151891443,-151.67,0.00040708,120]
[379121433,1755151891453,-346.92554585,0.00040746,2]
[379121434,1755151891462,-160.0,0.00040746,2]
[379121435,1755151891472,-322.10612731,0.00040746,2]
[379121436,1755151891482,-1075.369,0.00040748,2]
[379121437,1755151891492,-153.33,0.00040754,120]
[379121438,1755151891502,-928.0,0.0004076,2]
[379121439,1755151891512,-200.0,0.00040804,7]
[379121440,1755151891522,-200.0,0.00040804,7]
[379121441,1755151891533,-151.67,0.00040808,120]
[379121442,1755151891543,-607.0,0.00040822,15]
[379121443,1755151891552,-250.0,0.00040822,15]
[379121444,1755151891562,-151.0,0.00040825,30]
[379121445,1755151891571,-177.158252,0.00040825,30]
[379121446,1755151891580,-177.158252,0.00040825,30]
[379121447,1755151891590,-153.33,0.00040854,120]
[379121448,1755151891601,-152.0,0.00040865,15]
[379121449,1755151891611,-823.15952,0.0004087,6]
[379121450,1755151891620,-150.0,0.0004088,30]
[379121451,1755151891631,-150.0,0.0004088,30]
[379121452,1755151891640,-150.0,0.0004088,30]
[379121453,1755151891650,-151.67,0.00040908,120]
[379121454,1755151891659,-513.0,0.00040927,17]
[379121455,1755151891669,-153.33,0.00040954,120]
[379121456,1755151891679,-936.46,0.00040969,2]
[379121457,1755151891688,-468.3,0.00040969,2]
[379121458,1755151891698,-468.3,0.00040969,2]
[379121459,1755151891710,-500.0,0.00040991,30]
[379121460,1755151891722,-391298.5168379,0.00040999,30]
[379121461,1755151891733,-33115.92240312,0.00040999,120]
[379121462,1755151891742,-233.411069,0.00040999,30]
[379121463,1755151891751,-233.411069,0.00040999,30]
[379121464,1755151891760,-151.0,0.00040999,30]
[379121465,1755151891771,-250.397214,0.00040999,30]
[379121466,1755151891780,-250.397214,0.00040999,30]
[379121467,1755151891789,-252.828245,0.00040999,30]
[379121468,1755151891799,-557.380901,0.00040999,30]
[379121469,1755151891808,-557.380901,0.00040999,30]
[379121470,1755151891818,-250.0,0.00041,120]
[379121471,1755151891827,-2395.04881133,0.00041,120]
[379121472,1755151891837,-160.0,0.00041,3]
[379121473,1755151891846,-164.22428948,0.00041,60]
[379121474,1755151891857,-169.0,0.00041,90]
[379121475,1755151891866,-8838.24188404,0.00041003,2]
[379121476,1755151891875,-151.77668917,0.00041008,120]
[379121477,1755151891885,-291.0,0.00041027,2]
[379121478,1755151891897,-153.33,0.00041054,120]
[379121479,1755151891907,-928.0,0.00041055,2]
[379121480,1755151891916,-1000.0,0.00041095,120]
[379121481,1755151891928,-607.0,0.00041096,15]
[379121482,1755151891937,-156.0,0.00041096,30]
[379121483,1755151891947,-2500.0,0.00041096,2]
[379121484,1755151891956,-150.0,0.00041096,15]
[379121485,1755151891967,-500.0,0.00041096,31]
[379121486,1755151891976,-500.0,0.00041096,31]
[379121487,1755151891986,-500.0,0.00041096,31]
[379121488,1755151891996,-500.0,0.00041096,31]
[379121489,1755151892008,-500.0,0.00041096,31]
[379121490,1755151892020,-500.0,0.00041096,31]
[379121491,1755151892029,-500.0,0.00041096,31]
[379121492,1755151892040,-500.0,0.00041096,31]
[379121493,1755151892050,-500.0,0.00041096,31]
[379121494,1755151892059,-195.24384184,0.00041096,31]
[379121495,1755151892069,-500.0,0.00041096,31]
[379121496,1755151892078,-2000.0,0.000411,2]
[379121497,1755151892087,-1000.0,0.000411,2]
[379121498,1755151892098,-153.48,0.00041154,120]
[379121499,1755151892109,-247.33,0.00041155,120]
[379121500,1755151892119,-1000.0,0.0004117,3]
[379121501,1755151892128,-1000.0,0.0004117,3]
[379121502,1755151892137,-500.0,0.0004117,3]
[379121503,1755151892146,-500.0,0.0004117,3]
[379121504,1755151892156,-151.0,0.00041192,30]
[379121505,1755151892166,-60000.0,0.000412,30]
[379121506,1755151892175,-306.97218,0.000412,30]
[379121507,1755151892185,-306.97218555,0.000412,30]
[379121508,1755151892194,-417.712432,0.000412,30]
[379121509,1755151892204,-417.71243,0.000412,30]
[379121510,1755151892213,-1522.4288,0.000412,2]
[379121511,1755151892222,-1167.1059,0.000412,2]
[379121512,1755151892232,-200.0,0.00041212,7]
[379121513,1755151892242,-200.0,0.00041212,7]
[379121514,1755151892252,-150.0,0.00041231,30]
[379121515,1755151892261,-150.0,0.00041231,30]
[379121516,1755151892271,-150.0,0.00041231,30]
[379121517,1755151892281,-150.0,0.00041231,30]
[379121518,1755151892290,-173.35,0.00041231,30]
[379121519,1755151892300,-360.03,0.00041231,30]
[379121520,1755151892310,-150.0,0.00041243,30]
[379121521,1755151892321,-2000.0,0.00041244,120]
[379121522,1755151892332,-150.0,0.00041244,30]
[379121523,1755151892341,-346.7,0.00041244,30]
[379121524,1755151892352,-300.0,0.00041244,30]
[379121525,1755151892362,-720.26,0.00041244,30]
[379121526,1755151892377,-360.13,0.00041244,30]
[379121527,1755151892386,-360.13,0.00041244,30]
[379121528,1755151892396,-150.0,0.00041245,120]
[379121529,1755151892405,-350.0,0.0004133,120]
[379121530,1755151892415,-168.0,0.00041364,2]
[379121531,1755151892424,-607.0,0.0004137,15]
[379121532,1755151892433,-150.0,0.0004137,15]
[379121533,1755151892442,-823.15952,0.0004137,8]
[379121534,1755151892451,-5318.7514041,0.00041372,2]
[379121535,1755151892461,-5110.7213501,0.00041372,2]
[379121536,1755151892471,-4910.8278868,0.00041372,2]
[379121537,1755151892480,-9252.9429791,0.00041372,2]
[379121538,1755151892489,-4356.846361,0.00041372,2]
[379121539,1755151892499,-8209.1353793,0.00041372,2]
[379121540,1755151892509,-7579.5328423,0.00041372,2]
[379121541,1755151892519,-3568.9034458,0.00041372,2]
[379121542,1755151892529,-3429.3144483,0.00041372,2]
[379121543,1755151892539,-165.84,0.00041429,30]
[379121544,1755151892549,-538.55,0.00041429,30]
[379121545,1755151892559,-165.84,0.00041429,30]
[379121546,1755151892568,-500.0,0.00041433,30]
[379121547,1755151892578,-801.88,0.00041435,30]
[379121548,1755151892587,-173.4,0.0004144,30]
[379121549,1755151892597,-538.69,0.0004144,30]
[379121550,1755151892608,-538.69,0.0004144,30]
[379121551,1755151892617,-538.69,0.0004144,30]
[379121552,1755151892626,-6461.4871014,0.00041448,2]
[379121553,1755151892636,-15639.4940577,0.0004145,2]
[379121554,1755151892645,-12732.0929541,0.00041457,2]
[379121555,1755151892655,-5995.0410351,0.00041457,2]
[379121556,1755151892664,-5760.5595534,0.00041457,2]
[379121557,1755151892673,-5535.2492458,0.00041457,2]
[379121558,1755151892682,-300.0,0.00041459,120]
[379121559,1755151892692,-152.0,0.000415,16]
[379121560,1755151892701,-400.0,0.00041552,120]
[379121561,1755151892712,-155.0,0.000416,120]
[379121562,1755151892722,-200.0,0.00041624,7]
[379121563,1755151892732,-200.0,0.00041624,7]
[379121564,1755151892741,-168.0,0.00041635,7]
[379121565,1755151892751,-607.0,0.00041644,15]
[379121566,1755151892760,-206.36153292,0.00041644,15]
[379121567,1755151892771,-200.0,0.00041687,120]
[379121568,1755151892781,-500.0,0.00041739,120]
[379121569,1755151892790,-500.0,0.00041739,120]
[379121570,1755151892810,-500.0,0.00041739,120]
[379121571,1755151892821,-500.0,0.00041739,120]
[379121572,1755151892831,-500.0,0.00041739,120]
[379121573,1755151892839,-500.0,0.00041739,120]
[379121574,1755151892851,-500.0,0.00041739,120]
[379121575,1755151892861,-500.0,0.00041739,120]
[379121576,1755151892871,-500.0,0.00041739,120]
[379121577,1755151892881,-500.0,0.00041739,120]
[379121578,1755151892892,-500.0,0.00041739,120]
[379121579,1755151892901,-500.0,0.00041739,120]
[379121580,1755151892911,-500.0,0.00041739,120]
[379121581,1755151892922,-500.0,0.00041739,120]
[379121582,1755151892935,-500.0,0.00041739,120]
[379121583,1755151892946,-500.0,0.00041739,120]
[379121584,1755151892956,-500.0,0.00041739,120]
[379121585,1755151892966,-500.0,0.00041739,120]
[379121586,1755151892977,-500.0,0.00041739,120]
[379121587,1755151892988,-500.0,0.00041739,120]
[379121588,1755151892999,-500.0,0.00041739,120]
[379121589,1755151893011,-500.0,0.00041739,120]
[379121590,1755151893020,-500.0,0.00041739,120]
[379121591,1755151893031,-500.0,0.00041739,120]
[379121592,1755151893041,-500.0,0.00041739,120]
[379121593,1755151893051,-500.0,0.00041739,120]
[379121594,1755151893061,-500.0,0.00041739,120]
[379121595,1755151893071,-500.0,0.00041739,120]
[379121596,1755151893081,-500.0,0.00041739,120]
[379121597,1755151893092,-500.0,0.00041739,120]
[379121598,1755151893103,-500.0,0.00041739,120]
[379121599,1755151893114,-500.0,0.00041739,120]
[379121600,1755151893124,-500.0,0.00041739,120]
[379121601,1755151893134,-500.0,0.00041739,120]
[379121602,1755151893144,-500.0,0.00041739,120]
[379121603,1755151893154,-500.0,0.00041739,120]
[379121604,1755151893164,-500.0,0.00041739,120]
[379121605,1755151893174,-500.0,0.00041739,120]
[379121606,1755151893184,-500.0,0.00041739,120]
[379121607,1755151893194,-500.0,0.00041739,120]
[379121608,1755151893204,-500.0,0.00041739,120]
[379121609,1755151893214,-500.0,0.00041739,120]
[379121610,1755151893224,-500.0,0.00041739,120]
[379121611,1755151893234,-500.0,0.00041739,120]
[379121612,1755151893245,-500.0,0.00041739,120]
[379121613,1755151893255,-500.0,0.00041739,120]
[379121614,1755151893266,-500.0,0.00041739,120]
[379121615,1755151893277,-500.0,0.00041739,120]
[379121616,1755151893287,-500.0,0.00041739,120]
[379121617,1755151893298,-500.0,0.00041739,120]
[379121618,1755151893308,-500.0,0.00041739,120]
[379121619,1755151893318,-500.0,0.00041739,120]
[379121620,1755151893328,-500.0,0.00041739,120]
[379121621,1755151893338,-500.0,0.00041739,120]
[379121622,1755151893350,-500.0,0.00041739,120]
[379121623,1755151893360,-500.0,0.00041739,120]
[379121624,1755151893371,-500.0,0.00041739,120]
[379121625,1755151893382,-500.0,0.00041739,120]
[379121626,1755151893587,-500.0,0.00041739,120]
[379121627,1755151893597,-500.0,0.00041739,120]
[379121628,1755151893609,-500.0,0.00041739,120]
[379121629,1755151893618,-500.0,0.00041739,120]
[379121630,1755151893628,-500.0,0.00041739,120]
[379121631,1755151893638,-823.0,0.00041739,120]
[379121632,1755151893648,-520.0,0.00041739,120]
[379121633,1755151893657,-960.0,0.0004185,2]
[379121634,1755151893667,-168.0,0.00041856,2]
[379121635,1755151893677,-823.15953,0.0004187,11]
[379121636,1755151893686,-500.0,0.00041876,30]
[379121637,1755151893696,-199.0,0.00041917,5]
[379121638,1755151893706,-607.0,0.00041918,15]
[379121639,1755151893715,-468.07,0.00041925,30]
[379121640,1755151893726,-168.0,0.00041973,2]
[379121641,1755151893736,-250.0,0.00042,120]
[379121642,1755151893746,-151.0,0.00042,30]
[379121643,1755151893757,-500.0,0.00042,2]
[379121644,1755151893767,-412.74577673,0.00042015,120]
[379121645,1755151893777,-165.84,0.00042053,30]
[379121646,1755151893787,-173.4,0.00042065,30]
[379121647,1755151893797,-712.74,0.00042065,30]
[379121648,1755151893807,-396.14,0.00042065,30]
[379121649,1755151893817,-719.76,0.00042066,30]
[379121650,1755151893827,-456.42,0.00042066,30]
[379121651,1755151893837,-316.7001175,0.00042115,2]
[379121652,1755151893847,-160.0,0.00042115,2]
[379121653,1755151893858,-152.0,0.00042135,17]
[379121654,1755151893869,-646.976065,0.00042187,120]
[379121655,1755151893879,-500.0,0.00042187,120]
[379121656,1755151893888,-607.0,0.00042192,15]
[379121657,1755151893898,-3600.0,0.000422,2]
[379121658,1755151893908,-60000.0,0.000422,30]
[379121659,1755151893917,-16367.50436151,0.00042222,2]
[379121660,1755151893929,-151.0,0.00042233,2]
[379121661,1755151893939,-270.75161018,0.00042278,2]
[379121662,1755151893948,-500.0,0.00042318,30]
[379121663,1755151893958,-3931.02299662,0.00042463,39]
[379121664,1755151893968,-700.54365459,0.00042465,120]
[379121665,1755151893978,-607.0,0.00042466,15]
[379121666,1755151893988,-247.33,0.00042525,120]
[379121667,1755151893998,-2500.0,0.00042538,2]
[379121668,1755151894008,-199.0,0.00042602,6]
[379121669,1755151894017,-200.0,0.00042687,120]
[379121670,1755151894028,-607.0,0.0004274,15]
[379121671,1755151894038,-500.0,0.00042761,30]
[379121672,1755151894048,-152.0,0.0004277,18]
[379121673,1755151894058,-150.0,0.00042829,120]
[379121674,1755151894068,-400.0,0.00042921,120]
[379121675,1755151894078,-155.84980808,0.00042959,2]
[379121676,1755151894088,-5318.7514041,0.00042975,2]
[379121677,1755151894099,-5110.7213501,0.00042975,2]
[379121678,1755151894109,-4910.8278868,0.00042975,2]
[379121679,1755151894119,-9252.9429791,0.00042975,2]
[379121680,1755151894129,-4356.846361,0.00042975,2]
[379121681,1755151894138,-8209.1353793,0.00042975,2]
[379121682,1755151894148,-7579.5328423,0.00042975,2]
[379121683,1755151894158,-3568.9034458,0.00042975,2]
[379121684,1755151894167,-3429.3144483,0.00042975,2]
[379121685,1755151894181,-5905.00775617,0.00043,120]
[379121686,1755151894190,-207.61712646,0.00043,120]
[379121687,1755151894200,-432.89,0.00043,120]
[379121688,1755151894210,-452.21305365,0.00043012,10]
[379121689,1755151894219,-607.0,0.00043013,15]
[379121690,1755151894229,-940.0,0.0004303,2]
[379121691,1755151894239,-159.0,0.000431,120]
[379121692,1755151894248,-15639.4940577,0.00043114,2]
[379121693,1755151894258,-12732.0929541,0.00043129,2]
[379121694,1755151894268,-5995.0410351,0.00043129,2]
[379121695,1755151894278,-5760.5595534,0.00043129,2]
[379121696,1755151894288,-5535.2492458,0.00043129,2]
[379121697,1755151894298,-170.0,0.00043151,90]
[379121698,1755151894308,-2000.0,0.000432,120]
[379121699,1755151894319,-60000.0,0.000432,30]
[379121700,1755151894328,-500.0,0.00043203,30]
[379121701,1755151894339,-162.25094563,0.00043205,30]
[379121702,1755151894349,-513.0,0.00043226,19]
[379121703,1755151894359,-199.0,0.00043287,7]
[379121704,1755151894368,-607.0,0.00043287,15]
[379121705,1755151894378,-152.0,0.00043405,19]
[379121706,1755151894389,-151.0,0.00043406,30]
[379121707,1755151894399,-185.246778,0.00043406,30]
[379121708,1755151894409,-185.246778,0.00043406,30]
[379121709,1755151894419,-485.567522,0.00043406,30]
[379121710,1755151894430,-167.160009,0.00043406,30]
[379121711,1755151894440,-167.160009,0.00043406,30]
[379121712,1755151894450,-211.648967,0.00043406,30]
[379121713,1755151894459,-211.648967,0.00043406,30]
[379121714,1755151894469,-151.0,0.00043406,30]
[379121715,1755151894479,-151.0,0.00043406,30]
[379121716,1755151894489,-355.362612,0.00043406,30]
[379121717,1755151894499,-355.362612,0.00043406,30]
[379121718,1755151894509,-1115.157653,0.00043487,2]
[379121719,1755151894519,-1231.0,0.000435,120]
[379121720,1755151894529,-607.0,0.00043561,15]
[379121721,1755151894539,-500.0,0.00043646,30]
[379121722,1755151894548,-200.0,0.00043687,120]
[379121723,1755151894558,-150.86,0.00043693,30]
[379121724,1755151894567,-150.0,0.00043693,30]
[379121725,1755151894577,-150.0,0.00043693,30]
[379121726,1755151894587,-150.0,0.00043693,30]
[379121727,1755151894597,-150.0,0.00043743,30]
[379121728,1755151894607,-158.636103,0.00043808,30]
[379121729,1755151894617,-158.636103,0.00043808,30]
[379121730,1755151894627,-151.0,0.00043808,30]
[379121731,1755151894636,-12227.13,0.00043808,2]
[379121732,1755151894646,-607.0,0.00043835,15]
[379121733,1755151894656,-336.41,0.00043843,120]
[379121734,1755151894665,-247.33,0.00043895,120]
[379121735,1755151894675,-2000.0,0.000439,2]
[379121736,1755151894685,-524.6,0.00043959,120]
[379121737,1755151894694,-199.0,0.00043972,8]
[379121738,1755151894705,-2500.0,0.0004398,2]
[379121739,1755151894714,-536.520139,0.00044,57]
[379121740,1755151894724,-152.0,0.0004404,20]
[379121741,1755151894734,-500.0,0.00044089,30]
[379121742,1755151894744,-608.59972169,0.00044109,15]
[379121743,1755151894756,-60000.0,0.000442,30]
[379121744,1755151894765,-150.0,0.00044215,30]
[379121745,1755151894775,-919.0,0.0004422,2]
[379121746,1755151894784,-152.0,0.00044244,2]
[379121747,1755151894794,-456.36913504,0.00044249,8]
[379121748,1755151894803,-400.0,0.00044291,120]
[379121749,1755151894812,-2309.24325917,0.000444,120]
[379121750,1755151894822,-150.0,0.00044463,120]
[379121751,1755151894832,-500.0,0.00044531,30]
[379121752,1755151894841,-1000.0,0.00044599,2]
[379121753,1755151894851,-199.0,0.00044657,9]
[379121754,1755151894860,-152.0,0.00044675,21]
[379121755,1755151894870,-200.0,0.00044687,120]
[379121756,1755151894881,-15639.4940577,0.00044778,2]
[379121757,1755151894894,-12732.0929541,0.000448,2]
[379121758,1755151894903,-5995.0410351,0.000448,2]
[379121759,1755151894913,-5760.5595534,0.000448,2]
[379121760,1755151894923,-5535.2492458,0.000448,2]
[379121761,1755151894936,-210.0,0.0004483,30]
[379121762,1755151894946,-500.0,0.00044974,30]
[379121763,1755151894956,-2573.83890855,0.00045,120]
[379121764,1755151894966,-12059.82984729,0.00045,120]
[379121765,1755151894977,-30262.29183055,0.00045,2]
[379121766,1755151894987,-1328.56866945,0.00045,120]
[379121767,1755151894996,-38563.18721467,0.00045,2]
[379121768,1755151895006,-161.99413851,0.00045,120]
[379121769,1755151895018,-4946.30273689,0.00045,120]
[379121770,1755151895029,-10978.38807472,0.00045,30]
[379121771,1755151895039,-517.07078858,0.00045,120]
[379121772,1755151895049,-2368.01805713,0.00045,14]
[379121773,1755151895058,-619.90234558,0.00045,120]
[379121774,1755151895068,-525.47598903,0.00045,120]
[379121775,1755151895079,-733.54551312,0.00045,120]
[379121776,1755151895088,-3457.79567543,0.00045,120]
[379121777,1755151895098,-2408.54896924,0.00045,120]
[379121778,1755151895108,-1390.48207205,0.00045,30]
[379121779,1755151895118,-2451.77866371,0.00045,30]
[379121780,1755151895128,-1096.90717102,0.00045,32]
[379121781,1755151895137,-307.63717692,0.00045,10]
[379121782,1755151895146,-368.82407678,0.00045,120]
[379121783,1755151895156,-2346.31594806,0.00045,120]
[379121784,1755151895166,-164.63228806,0.00045,120]
[379121785,1755151895175,-1078.71038783,0.00045,120]
[379121786,1755151895185,-1766.44,0.00045,2]
[379121787,1755151895194,-4431555.61322847,0.00045,5]
[379121788,1755151895204,-700.0,0.00045,5]
[379121789,1755151895214,-151.0,0.00045,30]
[379121790,1755151895223,-827.34171482,0.00045,120]
[379121791,1755151895234,-1153.65866192,0.00045,120]
[379121792,1755151895244,-151.0,0.00045,30]
[379121793,1755151895254,-151.0,0.00045,30]
[379121794,1755151895263,-177.158252,0.00045,30]
[379121795,1755151895273,-177.158252,0.00045,30]
[379121796,1755151895282,-151.0,0.00045,30]
[379121797,1755151895292,-185.246778,0.00045,30]
[379121798,1755151895302,-185.246778,0.00045,30]
[379121799,1755151895312,-485.567522,0.00045,30]
[379121800,1755151895321,-167.160009,0.00045,30]
[379121801,1755151895331,-167.160009,0.00045,30]
[379121802,1755151895340,-211.648967,0.00045,30]
[379121803,1755151895350,-211.648962,0.00045,30]
[379121804,1755151895360,-151.0,0.00045,30]
[379121805,1755151895369,-291.078241,0.00045,30]
[379121806,1755151895379,-158.636103,0.00045,30]
[379121807,1755151895389,-158.636094,0.00045,30]
[379121808,1755151895398,-355.362612,0.00045,30]
[379121809,1755151895408,-355.36262,0.00045,30]
[379121810,1755151895417,-151.0,0.00045,30]
[379121811,1755151895427,-233.411069,0.00045,30]
[379121812,1755151895436,-233.411063,0.00045,30]
[379121813,1755151895446,-233.563894,0.00045,30]
[379121814,1755151895457,-24896.24974875,0.00045,120]
[379121815,1755151895466,-250.397214,0.00045,30]
[379121816,1755151895476,-250.397206,0.00045,30]
[379121817,1755151895486,-252.828253,0.00045,30]
[379121818,1755151895496,-164.1,0.00045,85]
[379121819,1755151895505,-557.380901,0.00045,30]
[379121820,1755151895514,-557.380898,0.00045,30]
[379121821,1755151895524,-659.962784,0.00045,30]
[379121822,1755151895534,-659.962788,0.00045,30]
[379121823,1755151895544,-257.48,0.00045,30]
[379121824,1755151895553,-257.48,0.00045,30]
[379121825,1755151895562,-296.66023,0.00045,30]
[379121826,1755151895572,-296.660227,0.00045,30]
[379121827,1755151895582,-224.446214,0.00045,30]
[379121828,1755151895592,-224.446219,0.00045,30]
[379121829,1755151895603,-192.957596,0.00045,30]
[379121830,1755151895613,-192.957586,0.00045,30]
[379121831,1755151895623,-160.88937,0.00045,30]
[379121832,1755151895632,-163.600557,0.00045,30]
[379121833,1755151895642,-163.600565,0.00045,30]
[379121834,1755151895651,-1117.504091,0.00045,30]
[379121835,1755151895661,-182.924226,0.00045,30]
[379121836,1755151895671,-182.924223,0.00045,30]
[379121837,1755151895680,-362.941334,0.00045,30]
[379121838,1755151895690,-362.941331,0.00045,30]
[379121839,1755151895700,-265.916978,0.00045,30]
[379121840,1755151895710,-265.91698,0.00045,30]
[379121841,1755151895720,-840.643712,0.00045,30]
[379121842,1755151895730,-840.643721,0.00045,30]
[379121843,1755151895739,-988.5472814,0.00045,120]
[379121844,1755151895749,-178.44857896,0.0004511,60]
[379121845,1755151895758,-50000.0,0.000452,30]
[379121846,1755151895768,-167.160009,0.000452,30]
[379121847,1755151895778,-167.160003,0.000452,30]
[379121848,1755151895787,-462.25,0.000452,30]
[379121849,1755151895798,-151.0,0.000452,30]
[379121850,1755151895813,-155.0,0.000452,120]
[379121851,1755151895824,-159.26160236,0.0004526,7]
[379121852,1755151895834,-247.33,0.00045264,120]
[379121853,1755151895843,-152.0,0.0004531,22]
[379121854,1755151895853,-199.0,0.00045342,10]
[379121855,1755151895863,-3931.02299662,0.00045391,46]
[379121856,1755151895872,-899.0,0.000454,2]
[379121857,1755151895882,-500.0,0.00045416,30]
[379121858,1755151895891,-2500.0,0.00045422,2]
[379121859,1755151895900,-513.0,0.00045524,22]
[379121860,1755151895909,-400.0,0.00045661,120]
[379121861,1755151895918,-200.0,0.00045687,120]
[379121862,1755151895932,-1521.80726484,0.000457,120]
[379121863,1755151895943,-500.0,0.00045859,30]
[379121864,1755151895953,-2599.80941146,0.000459,120]
[379121865,1755151895962,-37399.9999691,0.000459,30]
[379121866,1755151895973,-152.0,0.00045945,23]
[379121867,1755151895982,-320.34027941,0.00046,120]
[379121868,1755151895992,-202.64937112,0.00046,30]
[379121869,1755151896001,-2140.77429934,0.00046,120]
[379121870,1755151896018,-46110.54390205,0.00046,30]